Workbook

Sheet BudgetWorksheet
A1: Etchemendy NSF MARS Renewal | L1: Updated: | M1: =TODAY() -> 2014-12-05
C2: Year1 | E2: Year 2 | G2: Year 3 | I2: Year 4 | K2: Year 5
A3: TOTAL | C3: =D109 -> 522321.5044 | E3: =F109 -> 315500.22 | G3: =H109 -> 379636.79 | I3: =J109 -> 332199.0548 | K3: =L109 -> 594759.2604 | M3: =M109 -> 2144416.83
A4: SALARY/WAGES | C4: 2 | D4: Y1 | E4: =IF($C$4=1, "HOURS", "MONTHS") -> MONTHS | F4: Y2 | G4: =IF($C$4=1, "HOURS", "MONTHS") -> MONTHS | H4: Y3 | I4: =IF($C$4=1, "HOURS", "MONTHS") -> MONTHS | J4: Y4 | K4: =IF($C$4=1, "HOURS", "MONTHS") -> MONTHS | L4: Y5 | M4: Total
A6: ='Salary Worksheet'!B4 -> Etchemendy | C6: 0 | D6: =IF($C$4=1,ROUND('Salary Worksheet'!D13*C6,2), ROUND('Salary Worksheet'!D4/12*C6,2)) -> 0 | E6: 0 | F6: =IF($C$4=1,ROUND('Salary Worksheet'!E13*E6,2), ROUND('Salary Worksheet'!E4/12*E6,2)) -> 0 | G6: 0 | H6: =IF($C$4=1,ROUND('Salary Worksheet'!F13*G6,2), ROUND('Salary Worksheet'!F4/12*G6,0)) -> 0 | I6: 0 | J6: =IF($C$4=1,ROUND('Salary Worksheet'!G13*I6,2), ROUND('Salary Worksheet'!G4/12*I6,0)) -> 0 | K6: 0 | L6: =IF($C$4=1,ROUND('Salary Worksheet'!H13*K6,2), ROUND('Salary Worksheet'!H4/12*K6,0)) -> 0 | M6: =SUM(L6,J6,H6,F6,D6) -> 0
A7: ='Salary Worksheet'!B5 -> Dawe | C7: 2 | D7: =IF($C$4=1,ROUND('Salary Worksheet'!D14*C7,2), ROUND('Salary Worksheet'!D5/12*C7,2)) -> 25989.99 | E7: 2 | F7: =IF($C$4=1,ROUND('Salary Worksheet'!E14*E7,2), ROUND('Salary Worksheet'!E5/12*E7,2)) -> 26769.67 | G7: 2 | H7: =IF($C$4=1,ROUND('Salary Worksheet'!F14*G7,2), ROUND('Salary Worksheet'!F5/12*G7,0)) -> 27573 | I7: 2 | J7: =IF($C$4=1,ROUND('Salary Worksheet'!G14*I7,2), ROUND('Salary Worksheet'!G5/12*I7,0)) -> 28400 | K7: 2 | L7: =IF($C$4=1,ROUND('Salary Worksheet'!H14*K7,2), ROUND('Salary Worksheet'!H5/12*K7,0)) -> 29252 | M7: =SUM(J7+H7+F7+D7+L7) -> 137984.66
C8: 0 | D8: =IF($C$4=1,ROUND('Salary Worksheet'!D15*C8,2), ROUND('Salary Worksheet'!D6/12*C8,2)) -> 0 | E8: 0 | F8: =IF($C$4=1,ROUND('Salary Worksheet'!E15*E8,2), ROUND('Salary Worksheet'!E6/12*E8,2)) -> 0 | G8: 0 | H8: =IF($C$4=1,ROUND('Salary Worksheet'!F15*G8,2), ROUND('Salary Worksheet'!F6/12*G8,0)) -> 0 | I8: 0 | J8: =IF($C$4=1,ROUND('Salary Worksheet'!G15*I8,2), ROUND('Salary Worksheet'!G6/12*I8,0)) -> 0 | K8: 0 | L8: =IF($C$4=1,ROUND('Salary Worksheet'!H15*K8,2), ROUND('Salary Worksheet'!H6/12*K8,0)) -> 0 | M8: =SUM(J8+H8+F8+D8+L8) -> 0
A9: Subtotal Sr. Personnel Salary | D9: =SUM(D6:D8) -> 25989.99 | F9: =SUM(F6:F8) -> 26769.67 | H9: =SUM(H6:H8) -> 27573 | J9: =SUM(J6:J8) -> 28400 | L9: =SUM(L6:L8) -> 29252 | M9: =SUM(J9+H9+F9+D9+L9) -> 137984.66
A10: ='Salary Worksheet'!B7 -> Ken Heller | C10: 12 | D10: =IF($C$4=1,ROUND('Salary Worksheet'!D16*C10,2), ROUND('Salary Worksheet'!D7/12*C10,0)) -> 62225 | E10: 12 | F10: =IF($C$4=1,ROUND('Salary Worksheet'!E16*E10,2), ROUND('Salary Worksheet'!E7/12*E10,2)) -> 64092 | G10: 12 | H10: =IF($C$4=1,ROUND('Salary Worksheet'!F16*G10,2), ROUND('Salary Worksheet'!F7/12*G10,2)) -> 66015 | I10: 12 | J10: =IF($C$4=1,ROUND('Salary Worksheet'!G16*I10,2), ROUND('Salary Worksheet'!G7/12*I10,2)) -> 67995 | K10: 12 | L10: =IF($C$4=1,ROUND('Salary Worksheet'!H16*K10,2), ROUND('Salary Worksheet'!H7/12*K10,2)) -> 70035 | M10: =SUM(L10+J10+H10+F10+D10) -> 330362
A11: ='Salary Worksheet'!B8 -> Maughan/McGill | C11: 3 | D11: =IF($C$4=1,ROUND('Salary Worksheet'!D17*C11,2), ROUND('Salary Worksheet'!D8/12*C11,0)) -> 40629 | E11: 0 | F11: =IF($C$4=1,ROUND('Salary Worksheet'!E17*E11,2), ROUND('Salary Worksheet'!E8/12*E11,2)) -> 0 | G11: 0 | H11: =IF($C$4=1,ROUND('Salary Worksheet'!F17*G11,2), ROUND('Salary Worksheet'!F8/12*G11,2)) -> 0 | I11: 0 | J11: =IF($C$4=1,ROUND('Salary Worksheet'!G17*I11,2), ROUND('Salary Worksheet'!G8/12*I11,2)) -> 0 | K11: 0 | L11: =IF($C$4=1,ROUND('Salary Worksheet'!H17*K11,2), ROUND('Salary Worksheet'!H8/12*K11,2)) -> 0 | M11: =SUM(L11+J11+H11+F11+D11) -> 40629
A12: ='Salary Worksheet'!B9 -> Enginnering Support | C12: 1 | D12: =IF($C$4=1,ROUND('Salary Worksheet'!D18*C12,2), ROUND('Salary Worksheet'!D9/12*C12,0)) -> 10983 | E12: 1 | F12: =IF($C$4=1,ROUND('Salary Worksheet'!E18*E12,2), ROUND('Salary Worksheet'!E9/12*E12,2)) -> 11312.83 | G12: 1 | H12: =IF($C$4=1,ROUND('Salary Worksheet'!F18*G12,2), ROUND('Salary Worksheet'!F9/12*G12,2)) -> 11652.25 | I12: 1 | J12: =IF($C$4=1,ROUND('Salary Worksheet'!G18*I12,2), ROUND('Salary Worksheet'!G9/12*I12,2)) -> 12001.83 | K12: 1 | L12: =IF($C$4=1,ROUND('Salary Worksheet'!H18*K12,2), ROUND('Salary Worksheet'!H9/12*K12,2)) -> 12361.92 | M12: =SUM(L12+J12+H12+F12+D12) -> 58311.83
A13: ='Salary Worksheet'!B10 -> Linda Kuhnz | C13: 1 | D13: =IF($C$4=1,ROUND('Salary Worksheet'!D19*C13,2), ROUND('Salary Worksheet'!D10/12*C13,0)) -> 6865 | E13: 0 | F13: =IF($C$4=1,ROUND('Salary Worksheet'!E19*E13,2), ROUND('Salary Worksheet'!E10/12*E13,2)) -> 0 | G13: 0 | H13: =IF($C$4=1,ROUND('Salary Worksheet'!F19*G13,2), ROUND('Salary Worksheet'!F10/12*G13,2)) -> 0 | I13: 0 | J13: =IF($C$4=1,ROUND('Salary Worksheet'!G19*I13,2), ROUND('Salary Worksheet'!G10/12*I13,2)) -> 0 | K13: 2 | L13: =IF($C$4=1,ROUND('Salary Worksheet'!H19*K13,2), ROUND('Salary Worksheet'!H10/12*K13,2)) -> 15453.17 | M13: =SUM(L13+J13+H13+F13+D13) -> 22318.17
A15: Subtotal Other Employee Salary | D15: =SUM(D10:D14) -> 120702 | F15: =SUM(F10:F14) -> 75404.83 | H15: =SUM(H10:H14) -> 77667.25 | J15: =SUM(J10:J14) -> 79996.83 | L15: =SUM(L10:L14) -> 97850.09 | M15: =SUM(J15+H15+F15+D15+L15) -> 451621
A16: POSTDOCS, GSRs, PART-TIME, TEMPS
A17: To calculate labor costs for Postdocs and GSRs, enter months of effort below; salary will calculate automatically based on MBARI rates.
A18: PostDoc(s) | C18: 0 | D18: =IF($C$4=1,ROUND('Salary Worksheet'!D23*C18,2), ROUND('Salary Worksheet'!D22/12*C18,0)) -> 0 | E18: 0 | F18: =IF($C$4=1,ROUND('Salary Worksheet'!E23*E18,2), ROUND('Salary Worksheet'!E22/12*E18,0)) -> 0 | G18: 0 | H18: =IF($C$4=1,ROUND('Salary Worksheet'!F23*G18,2), ROUND('Salary Worksheet'!F22/12*G18,0)) -> 0 | I18: 0 | J18: =IF($C$4=1,ROUND('Salary Worksheet'!G23*I18,2), ROUND('Salary Worksheet'!G22/12*I18,0)) -> 0 | K18: 0 | L18: =IF($C$4=1,ROUND('Salary Worksheet'!H23*K18,2), ROUND('Salary Worksheet'!H22/12*K18,0)) -> 0 | M18: =SUM(J18+H18+F18+D18+L18) -> 0
A19: Graduate Student(s) (GSRs) | C19: 0 | D19: =IF($C$4=1,ROUND('Salary Worksheet'!D25*C19,2), ROUND('Salary Worksheet'!D24/12*C19,0)) -> 0 | E19: 0 | F19: =IF($C$4=1,ROUND('Salary Worksheet'!E25*E19,2), ROUND('Salary Worksheet'!E24/12*E19,0)) -> 0 | G19: 0 | H19: =IF($C$4=1,ROUND('Salary Worksheet'!F25*G19,2), ROUND('Salary Worksheet'!F24/12*G19,0)) -> 0 | I19: 0 | J19: =IF($C$4=1,ROUND('Salary Worksheet'!G25*I19,2), ROUND('Salary Worksheet'!G24/12*I19,0)) -> 0 | K19: 0 | L19: =IF($C$4=1,ROUND('Salary Worksheet'!H25*K19,2), ROUND('Salary Worksheet'!H24/12*K19,0)) -> 0 | M19: 0
A20: Part-time (30-39 hrs/wk) 1 | C20: 0 | D20: =IF($C$4=1,ROUND('Salary Worksheet'!E38*C20,2), ROUND('Salary Worksheet'!E31/12*C20,0)) -> 0 | E20: 0 | F20: =IF($C$4=1,ROUND('Salary Worksheet'!F38*E20,2), ROUND('Salary Worksheet'!F31/12*E20,0)) -> 0 | G20: 0 | H20: =IF($C$4=1,ROUND('Salary Worksheet'!G38*G20,2), ROUND('Salary Worksheet'!G31/12*G20,0)) -> 0 | I20: 0 | J20: =IF($C$4=1,ROUND('Salary Worksheet'!H38*I20,2), ROUND('Salary Worksheet'!H31/12*I20,0)) -> 0 | K20: 0 | L20: =IF($C$4=1,ROUND('Salary Worksheet'!I38*K20,2), ROUND('Salary Worksheet'!I31/12*K20,0)) -> 0 | M20: 0
A21: Part-time (30-39 hrs/wk) 2 | C21: 0 | D21: =IF($C$4=1,ROUND('Salary Worksheet'!E39*C21,2), ROUND('Salary Worksheet'!E32/12*C21,0)) -> 0 | E21: 0 | F21: =IF($C$4=1,ROUND('Salary Worksheet'!F39*E21,2), ROUND('Salary Worksheet'!F32/12*E21,0)) -> 0 | G21: 0 | H21: =IF($C$4=1,ROUND('Salary Worksheet'!G39*G21,2), ROUND('Salary Worksheet'!G32/12*G21,0)) -> 0 | I21: 0 | J21: =IF($C$4=1,ROUND('Salary Worksheet'!H39*I21,2), ROUND('Salary Worksheet'!H32/12*I21,0)) -> 0 | K21: 0 | L21: =IF($C$4=1,ROUND('Salary Worksheet'!I39*K21,2), ROUND('Salary Worksheet'!I32/12*K21,0)) -> 0 | M21: =SUM(J21+H21+F21+D21+L21) -> 0
A22: Part-time (<= 29 hrs/wk) 1 | C22: 0 | D22: =IF($C$4=1,ROUND('Salary Worksheet'!E40*C22,2), ROUND('Salary Worksheet'!E33/12*C22,0)) -> 0 | E22: 0 | F22: =IF($C$4=1,ROUND('Salary Worksheet'!F40*E22,2), ROUND('Salary Worksheet'!F33/12*E22,0)) -> 0 | G22: 0 | H22: =IF($C$4=1,ROUND('Salary Worksheet'!G40*G22,2), ROUND('Salary Worksheet'!G33/12*G22,0)) -> 0 | I22: 0 | J22: =IF($C$4=1,ROUND('Salary Worksheet'!H40*I22,2), ROUND('Salary Worksheet'!H33/12*I22,0)) -> 0 | K22: 0 | L22: =IF($C$4=1,ROUND('Salary Worksheet'!I40*K22,2), ROUND('Salary Worksheet'!I33/12*K22,0)) -> 0 | M22: 0
A23: Part-time (<= 29 hrs/wk) 2 | C23: 0 | D23: =IF($C$4=1,ROUND('Salary Worksheet'!E41*C23,2), ROUND('Salary Worksheet'!E34/12*C23,0)) -> 0 | E23: 0 | F23: =IF($C$4=1,ROUND('Salary Worksheet'!F41*E23,2), ROUND('Salary Worksheet'!F34/12*E23,0)) -> 0 | G23: 0 | H23: =IF($C$4=1,ROUND('Salary Worksheet'!G41*G23,2), ROUND('Salary Worksheet'!G34/12*G23,0)) -> 0 | I23: 0 | J23: =IF($C$4=1,ROUND('Salary Worksheet'!H41*I23,2), ROUND('Salary Worksheet'!H34/12*I23,0)) -> 0 | K23: 0 | L23: =IF($C$4=1,ROUND('Salary Worksheet'!I41*K23,2), ROUND('Salary Worksheet'!I34/12*K23,0)) -> 0 | M23: =SUM(J23+H23+F23+D23+L23) -> 0
A24: Temporary Employee 1 | C24: 0 | D24: =IF($C$4=1,ROUND('Salary Worksheet'!E42*C24,2), ROUND('Salary Worksheet'!E35/12*C24,0)) -> 0 | E24: 0 | F24: =IF($C$4=1,ROUND('Salary Worksheet'!F42*E24,2), ROUND('Salary Worksheet'!F35/12*E24,0)) -> 0 | G24: 0 | H24: =IF($C$4=1,ROUND('Salary Worksheet'!G42*G24,2), ROUND('Salary Worksheet'!G35/12*G24,0)) -> 0 | I24: 0 | J24: =IF($C$4=1,ROUND('Salary Worksheet'!H42*I24,2), ROUND('Salary Worksheet'!H35/12*I24,0)) -> 0 | K24: 0 | L24: =IF($C$4=1,ROUND('Salary Worksheet'!I42*K24,2), ROUND('Salary Worksheet'!I35/12*K24,0)) -> 0 | M24: 0
A25: Temporary Employee 2 | C25: 0 | D25: =IF($C$4=1,ROUND('Salary Worksheet'!E43*C25,2), ROUND('Salary Worksheet'!E36/12*C25,0)) -> 0 | E25: 0 | F25: =IF($C$4=1,ROUND('Salary Worksheet'!F43*E25,2), ROUND('Salary Worksheet'!F36/12*E25,0)) -> 0 | G25: 0 | H25: =IF($C$4=1,ROUND('Salary Worksheet'!G43*G25,2), ROUND('Salary Worksheet'!G36/12*G25,0)) -> 0 | I25: 0 | J25: =IF($C$4=1,ROUND('Salary Worksheet'!H43*I25,2), ROUND('Salary Worksheet'!H36/12*I25,0)) -> 0 | K25: 0 | L25: =IF($C$4=1,ROUND('Salary Worksheet'!I43*K25,2), ROUND('Salary Worksheet'!I36/12*K25,0)) -> 0 | M25: =SUM(J25+H25+F25+D25+L25) -> 0
A26: Subtotal Other Personnel Salary | D26: =SUM(D15:D24) -> 120702 | F26: =SUM(F15:F24) -> 75404.83 | H26: =SUM(H15:H24) -> 77667.25 | J26: =SUM(J15:J24) -> 79996.83 | L26: =SUM(L15:L24) -> 97850.09 | M26: 451621
A27: Total Salary & Wages | D27: =SUM(D26+D9) -> 146691.99 | F27: =SUM(F26+F9) -> 102174.5 | H27: =SUM(H26+H9) -> 105240.25 | J27: =SUM(J26+J9) -> 108396.83 | L27: =SUM(L26+L9) -> 127102.09 | M27: 589605.66
A28: FRINGE BENEFITS
A29: Full-time (Regular) | B29: 0.56 | D29: =((D9+D15)*$B$29) -> 82147.5144 | F29: =((F9+F15)*$B$29) -> 57217.72 | H29: =((H9+H15)*$B$29) -> 58934.54 | J29: =((J9+J15)*$B$29) -> 60702.2248 | L29: =((L9+L15)*$B$29) -> 71177.1704 | M29: =SUM(J29+H29+F29+D29+L29) -> 330179.1696
A30: PostDoc | B30: 0.46 | D30: =D18*$B$30 -> 0 | F30: =F18*$B$30 -> 0 | H30: =H18*$B$30 -> 0 | J30: =J18*$B$30 -> 0 | L30: =L18*$B$30 -> 0 | M30: 0
A31: GSRs + PT (20-29 hrs) | B31: 0.32 | D31: =(SUM(D19,D22,D23))*$B$31 -> 0 | F31: =(SUM(F19,F22,F23))*$B$31 -> 0 | H31: =(SUM(H19,H22,H23))*$B$31 -> 0 | J31: =(SUM(J19,J22,J23))*$B$31 -> 0 | L31: =(SUM(L19,L22,L23))*$B$31 -> 0 | M31: 0
A32: Temp | B32: 0.12 | D32: =(D24+D25)*$B$32 -> 0 | F32: =(F24+F25)*$B$32 -> 0 | H32: =(H24+H25)*$B$32 -> 0 | J32: =(J24+J25)*$B$32 -> 0 | L32: =(L24+L25)*$B$32 -> 0 | M32: 0
A33: Total Fringe Benefits | D33: =SUM(D29:D32) -> 82147.5144 | F33: =SUM(F29:F32) -> 57217.72 | H33: =SUM(H29:H32) -> 58934.54 | J33: =SUM(J29:J32) -> 60702.2248 | L33: =SUM(L29:L32) -> 71177.1704 | M33: 330179.1696
A34: Total Salary & Benefits | D34: =SUM(D33,D27) -> 228839.5044 | F34: =SUM(F33,F27) -> 159392.22 | H34: =SUM(H33,H27) -> 164174.79 | J34: =SUM(J33,J27) -> 169099.0548 | L34: =SUM(L33,L27) -> 198279.2604 | M34: 919784.8296
A35: CAPITAL EQUIPMENT (items >$5K)
A36: Item 1 | M36: =SUM(J36+H36+F36+D36+L36) -> 0
A37: computer equipment (routers) | D37: 16000 | F37: 0 | H37: 16000 | J37: 8000 | L37: 0 | M37: =SUM(J37+H37+F37+D37+L37) -> 40000
A38: equipment ODI connectors | F38: 18000 | J38: 9000 | M38: 27000
A39: Item 4 | M39: 0
A40: Item 5 | M40: 0
A41: Item 6 | M41: 0
A42: Item 7 | M42: 0
A43: Item 8 | M43: 0
A44: Item 9 | M44: 0
A45: Item 10 | M45: 0
A46: Total Equipment | D46: =SUM(D36:D45) -> 16000 | F46: =SUM(F36:F45) -> 18000 | H46: =SUM(H36:H45) -> 16000 | J46: =SUM(J36:J45) -> 17000 | L46: =SUM(L36:L45) -> 0 | M46: =SUM(L46,J46,H46,F46,D46) -> 67000
A47: TRAVEL
A48: Travel - Domestic | M48: =SUM(L48,J48,H48,F48,D48) -> 0
A49: Travel - Domestic | D49: 1000 | F49: 1000 | H49: 1000 | J49: 1000 | L49: 1000 | M49: =SUM(L49,J49,H49,F49,D49) -> 5000
A50: Total Travel | D50: =SUM(D48:D49) -> 1000 | F50: =SUM(F48:F49) -> 1000 | H50: =SUM(H48:H49) -> 1000 | J50: =SUM(J48:J49) -> 1000 | L50: =SUM(L48:L49) -> 1000 | M50: =SUM(L50,J50,H50,F50,D50) -> 5000
A51: PARTICIPANT SUPPORT
A52: Stipends | M52: =SUM(L52,J52,H52,F52,D52) -> 0
A53: Travel | M53: =SUM(L53,J53,H53,F53,D53) -> 0
A54: Subsistence | M54: =SUM(L54,J54,H54,F54,D54) -> 0
A55: Other | M55: =SUM(L55,J55,H55,F55,D55) -> 0
A56: Total Participant Support | D56: =SUM(D52:D55) -> 0 | F56: =SUM(F52:F55) -> 0 | H56: =SUM(H52:H55) -> 0 | J56: =SUM(J52:J55) -> 0 | L56: =SUM(L52:L55) -> 0 | M56: =SUM(L56,J56,H56,F56,D56) -> 0
A57: MATERIALS & SUPPLIES
A58: Item 1 | M58: =SUM(L58,J58,H58,F58,D58) -> 0
A59: computer hardware | D59: 750 | F59: 750 | H59: 750 | J59: 750 | L59: 750 | M59: =SUM(L59,J59,H59,F59,D59) -> 3750
A60: computer software | D60: 200 | F60: 200 | H60: 200 | J60: 200 | L60: 200 | M60: 1000
A61: non-cap equipment | D61: 4500 | F61: 4500 | H61: 4500 | J61: 4500 | L61: 4500 | M61: 22500
A62: general MARS supplies including bio survey | D62: 5000 | F62: 2000 | H62: 17000 | J62: 2000 | L62: 2000 | M62: 28000
M64: 0
M65: 0
M66: 0
M67: 0
A68: Total Materials & Supplies | D68: =SUM(D58:D67) -> 10450 | F68: =SUM(F58:F67) -> 7450 | H68: =SUM(H58:H67) -> 22450 | J68: =SUM(J58:J67) -> 7450 | L68: =SUM(L58:L67) -> 7450 | M68: =SUM(L68,J68,H68,F68,D68) -> 55250
A69: PUBLICATIONS/DOCUMENTATION
M70: =SUM(L70,J70,H70,F70,D70) -> 0
M71: =SUM(L71,J71,H71,F71,D71) -> 0
A72: Total Publications | D72: =SUM(D70) -> 0 | F72: =SUM(F70) -> 0 | H72: =SUM(H70:H70) -> 0 | J72: =SUM(J70:J70) -> 0 | L72: =SUM(L70:L70) -> 0 | M72: =SUM(L72,J72,H72,F72,D72) -> 0
A73: OUTSIDE SERVICES
A74: Item 1 | M74: =SUM(L74,J74,H74,F74,D74) -> 0
A75: Biological Survey | D75: 22980 | M75: =SUM(L75,J75,H75,F75,D75) -> 22980
A76: Normal MARS operation services | D76: 6280 | F76: 6468 | H76: 6663 | J76: 7171 | L76: 30151 | M76: =SUM(L76,J76,H76,F76,D76) -> 56733
A77: Total Outside Services | D77: =SUM(D74:D76) -> 29260 | F77: =SUM(F74:F76) -> 6468 | H77: =SUM(H74:H76) -> 6663 | J77: =SUM(J74:J76) -> 7171 | L77: =SUM(L74:L76) -> 30151 | M77: =SUM(L77,J77,H77,F77,D77) -> 79713
A78: SUBAWARDS
A79: Subaward 1 | M79: =SUM(L79,J79,H79,F79,D79) -> 0
A80: Subaward 2 | M80: =SUM(L80,J80,H80,F80,D80) -> 0
A81: Subaward 3 | M81: =SUM(L81,J81,H81,F81,D81) -> 0
A82: Subaward 4 | M82: 0
A83: Subaward 5 | M83: 0
A84: Subaward 6 | M84: 0
A85: Subaward 7 | M85: 0
A86: Subaward 8 | M86: 0
A87: Subaward 9 | M87: 0
A88: Subaward 10 | M88: 0
A89: Total Subawards | D89: =SUM(D79:D88) -> 0 | F89: =SUM(F79:F88) -> 0 | H89: =SUM(H79:H88) -> 0 | J89: =SUM(J79:J88) -> 0 | L89: =SUM(L79:L88) -> 0 | M89: =SUM(L89,J89,H89,F89,D89) -> 0
A90: Subawards subject to OH | D90: ='Subaward Worksheet'!B35 -> 0 | F90: ='Subaward Worksheet'!C35 -> 0 | H90: ='Subaward Worksheet'!D35 -> 0 | J90: ='Subaward Worksheet'!E35 -> 0 | L90: ='Subaward Worksheet'!F35 -> 0
A91: OH on Subawards | D91: ='Subaward Worksheet'!$B$36 -> 0 | F91: ='Subaward Worksheet'!$C$36 -> 0 | H91: ='Subaward Worksheet'!$D$36 -> 0 | J91: ='Subaward Worksheet'!$E$36 -> 0 | L91: ='Subaward Worksheet'!$F$36 -> 0 | M91: =SUM(L91,J91,H91,F91,D91) -> 0
A92: SHIP TIME | B92: Rate | C92: # Days | E92: # Days | G92: # Days | I92: # Days | K92: # Days
A93: none | B93: =INDEX('Ship rates'!A1:B13, MATCH(A93, ShipRates,0 ), 2) -> 0 | C93: 0 | D93: =B93*C93 -> 0 | F93: =29500*E93 -> 0 | H93: =29500*G93 -> 0 | J93: =29500*I93 -> 0 | L93: =29500*K93 -> 0 | M93: =SUM(L93,J93,H93,F93,D93) -> 0
A94: Western Flyer w/ Doc Ricketts, 24hr | B94: =INDEX('Ship rates'!A1:B13, MATCH(A94, ShipRates,0 ), 2) -> 28100 | C94: 0 | D94: =B94*C94 -> 0 | E94: 0 | F94: =B94*E94*1.03 -> 0 | G94: 0 | H94: =B94*G94*1.03 -> 0 | I94: 0 | J94: =B94*I94*1.03 -> 0 | K94: 4 | L94: =B94*K94*1.12 -> 125888 | M94: =SUM(L94,J94,H94,F94,D94) -> 125888
A95: Rachel Carson w/ Ventana, 12 hr | B95: 16500 | C95: 6 | D95: =B95*C95 -> 99000 | E95: 2 | F95: =B95*E95*1.03 -> 33990 | G95: 4 | H95: =B95*G95*1.06 -> 69960 | I95: 2 | J95: =B95*I95*1.09 -> 35970 | K95: 6 | L95: =B95*K95*1.12 -> 110880 | M95: =SUM(L95,J95,H95,F95,D95) -> 349800
D96: =B96*C96 -> 0 | F96: =B96*E96 -> 0 | H96: =B96*G96 -> 0 | J96: =B96*I96 -> 0 | L96: =B96*K96 -> 0 | M96: =SUM(L96,J96,H96,F96,D96) -> 0
A97: Total Ship Time | D97: =SUM(D93:D96) -> 99000 | F97: =SUM(F93:F95) -> 33990 | H97: =SUM(H93:H95) -> 69960 | J97: =SUM(J93:J95) -> 35970 | L97: =SUM(L93:L95) -> 236768 | M97: =SUM(L97,J97,H97,F97,D97) -> 475688
A98: TUITION/FEES | C98: Qtrs. | E98: Qtrs. | G98: Qtrs. | I98: Qtrs. | K98: Qtrs.
A99: UCSC Grad Student | C99: 0 | D99: =(C99*'Salary Worksheet'!D26) -> 0 | E99: 0 | F99: =(E99*'Salary Worksheet'!E26) -> 0 | G99: 0 | H99: =(G99*'Salary Worksheet'!F26) -> 0 | I99: 0 | J99: =(I99*'Salary Worksheet'!G26) -> 0 | K99: 0 | L99: =(K99*'Salary Worksheet'!H26) -> 0 | M99: =SUM(L99,J99,H99,F99,D99) -> 0
A100: UCSC Grad Student - Nonres. | C100: 0 | D100: =(C100*'Salary Worksheet'!D27) -> 0 | E100: 0 | F100: =(E100*'Salary Worksheet'!E27) -> 0 | G100: 0 | H100: =(G100*'Salary Worksheet'!F27) -> 0 | I100: 0 | J100: =(I100*'Salary Worksheet'!G27) -> 0 | K100: 0 | L100: =(K100*'Salary Worksheet'!H27) -> 0 | M100: =SUM(L100,J100,H100,F100,D100) -> 0
A101: Total Tuition/Fees | D101: =SUM(D99:D100) -> 0 | F101: =SUM(F99:F100) -> 0 | H101: =SUM(H99:H100) -> 0 | J101: =SUM(J99:J100) -> 0 | L101: =SUM(L99:L100) -> 0 | M101: =SUM(L101,J101,H101,F101,D101) -> 0
A102: SHIPPING
M103: =SUM(L103,J103,H103,F103,D103) -> 0
A104: Total Shipping | D104: 200 | F104: 200 | H104: 200 | J104: 200 | L104: 200 | M104: 1000
A106: TOTAL DIRECT COSTS | D106: =SUM(D104,D101,D97,D89,D77,D72,D68,D56,D50,D46,D34) -> 384749.5044 | F106: =SUM(F104,F101,F97,F89,F77,F72,F68,F56,F50,F46,F34) -> 226500.22 | H106: =SUM(H104,H101,H97,H89,H77,H72,H68,H56,H50,H46,H34) -> 280447.79 | J106: =SUM(J104,J101,J97,J89,J77,J72,J68,J56,J50,J46,J34) -> 237890.0548 | L106: =SUM(L104,L101,L97,L89,L77,L72,L68,L56,L50,L46,L34) -> 473848.2604 | M106: 1603435.83
A107: MODIFIED TOTAL DIRECT COST BASE | D107: =D106-D97-D93-D89+D90-D56-D46 -> 269749.5044 | F107: =F106-F97-F93-F89+F90-F56-F46 -> 174510.22 | H107: =H106-H97-H93-H89+H90-H56-H46 -> 194487.79 | J107: =J106-J97-J93-J89+J90-J56-J46 -> 184920.0548 | L107: =L106-L97-L93-L89+L90-L56-L46 -> 237080.2604 | M107: 1060747.83
A108: TOTAL INDIRECT COSTS | C108: 0.51 | D108: =ROUND(D107*$C$108,0) -> 137572 | F108: =ROUND(F107*$C$108,0) -> 89000 | H108: =ROUND(H107*$C$108,0) -> 99189 | J108: =ROUND(J107*$C$108,0) -> 94309 | L108: 120911 | M108: 540981
A109: TOTAL DIRECT & INDIRECT COSTS | D109: =+D108+D106 -> 522321.5044 | F109: =+F108+F106 -> 315500.22 | H109: =+H108+H106 -> 379636.79 | J109: =+J108+J106 -> 332199.0548 | L109: =+L108+L106 -> 594759.2604 | M109: 2144416.83

Sheet Salary Worksheet
A1: SALARY WORKSHEET
B2: Salary Increase Rate: | C2: 0.03 | G2: CONFIDENTIAL INFORMATION
C3: ANNUAL SALARY | D3: YR-1 | E3: YR-2 | F3: YR-3 | G3: YR-4 | H3: YR-5
B4: Etchemendy | C4: 0 | D4: =C4 -> 0 | E4: =ROUND(D4*($C$2+1),0) -> 0 | F4: =ROUND(E4*($C$2+1),0) -> 0 | G4: =ROUND(F4*($C$2+1),0) -> 0 | H4: =ROUND(G4*($C$2+1),0) -> 0
B5: Dawe | C5: 151398 | D5: =C5*1.03 -> 155939.94 | E5: =ROUND(D5*(C2+1),0) -> 160618 | F5: =ROUND(E5*($C$2+1),0) -> 165437 | G5: 170400 | H5: 175512
C6: 0 | D6: =C6 -> 0 | E6: =ROUND(D6*(C2+1),0) -> 0 | F6: 0 | G6: 0 | H6: 0
B7: Ken Heller | C7: 60413 | D7: =C7*1.03 -> 62225.39 | E7: =ROUND(D7*(C2+1),0) -> 64092 | F7: 66015 | G7: 67995 | H7: 70035
B8: Maughan/McGill | C8: 157781 | D8: =C8*1.03 -> 162514.43 | E8: =ROUND(D8*(C2+1),0) -> 167390 | F8: 172412 | G8: 177584 | H8: 182912
B9: Enginnering Support | C9: 127961 | D9: =C9*1.03 -> 131799.83 | E9: =ROUND(D9*(C2+1),0) -> 135754 | F9: 139827 | G9: 144022 | H9: 148343 | K9: =61.52*2080 -> 127961.6
B10: Linda Kuhnz | C10: 79979 | D10: =C10*1.03 -> 82378.37 | E10: =ROUND(D10*(C2+1),0) -> 84850 | F10: 87396 | G10: 90018 | H10: 92719
C11: 0 | D11: 0 | E11: =ROUND(D11*(C2+1),0) -> 0 | F11: 0 | G11: 0 | H11: 0
C12: HOURLY RATE | D12: YR-1 | E12: YR-2 | F12: YR-3 | G12: YR-4 | H12: YR-5
B13: PI/Co-PI 1 | C13: 0 | D13: =C13 -> 0 | E13: =ROUND(D13*1.03, 2) -> 0 | F13: =ROUND(E13*1.03, 2) -> 0 | G13: 0 | H13: 0
B14: PI/Co-PI 2 | C14: 0 | D14: =C14 -> 0 | E14: =ROUND(D14*1.03, 2) -> 0 | F14: 0 | G14: 0 | H14: 0
B15: PI/Co-PI 3 | C15: 0 | D15: 0 | E15: 0 | F15: 0 | G15: 0 | H15: 0
B16: Other Employee 1 | C16: 0 | D16: 0 | E16: 0 | F16: 0 | G16: 0 | H16: 0
B17: Other Employee 2 | C17: 0 | D17: 0 | E17: 0 | F17: 0 | G17: 0 | H17: 0
B18: Other Employee 3 | C18: 0 | D18: 0 | E18: 0 | F18: 0 | G18: 0 | H18: 0
B19: Other Employee 4 | C19: 0 | D19: 0 | E19: 0 | F19: 0 | G19: 0 | H19: 0
B20: Other Employes 5 | C20: 0 | D20: 0 | E20: 0 | F20: 0 | G20: 0 | H20: 0
A21: Postdoc salaries and grad student salaries and tuition are set by MBARI and UCSC policies. The cells below are locked and you do not need to enter any information here. Calculate postdoc and grad student salaries and tuition by entering months of effort/academic quarters in the corresponding cells in the Budget Worksheet.
B22: Postdocs | D22: 54000 | E22: 56000 | F22: =56000*1.03 -> 57680 | G22: =F22*1.03 -> 59410.4 | H22: =G22*1.03 -> 61192.712
C23: Postdoc (Hourly) | D23: =D22/1920 -> 28.125 | E23: =E22/1920 -> 29.16666667 | F23: 30.04166667 | G23: 30.94291667 | H23: 31.87120417
B24: Graduate Students | D24: 27950 | E24: 27950 | F24: 27950 | G24: 31200 | H24: 31200
C25: Grad Student (Hourly) | D25: =D24/1920 -> 14.55729167 | E25: =E24/1920 -> 14.55729167 | F25: 14.55729167 | G25: 16.25 | H25: 16.25
A26: UCSC Resident Tuition (per quarter) | D26: 5652.86 | E26: =D26*1.07 -> 6048.5602 | F26: 6471.959414 | G26: 6924.996573 | H26: 7409.746333
A27: UCSC Non-Res Tuition (per quarter) | D27: 10686.86 | E27: 11434.9402 | F27: 12235.38601 | G27: 13091.86303 | H27: 14008.29345
A29: PART-TIME & TEMP EMPLOYEES
A30: ANNUAL | C30: Hourly Rate | D30: Hrs/Wk | E30: ANNUAL SALARY | F30: YR-2 | G30: YR-3 | H30: YR-4 | I30: YR-5
B31: PT (30-39 hrs) 1 | C31: 0 | E31: =ROUND(C31*40*52,0) -> 0 | F31: =ROUND(E31*(1+$C$2),0) -> 0 | G31: 0 | H31: 0 | I31: =ROUND(H31*($C$2+1),0) -> 0
B32: PT (30-39 hrs) 2 | C32: 0 | E32: =ROUND(C32*40*52,0) -> 0 | F32: 0 | G32: 0 | H32: 0 | I32: =ROUND(H32*($C$2+1),0) -> 0
B33: PT (≤29 hrs) 1 | C33: 0 | E33: =ROUND(C33*40*52,0) -> 0 | F33: 0 | G33: 0 | H33: 0 | I33: 0
B34: PT (≤29 hrs) 2 | C34: 0 | E34: 0 | F34: 0 | G34: 0 | H34: 0 | I34: 0
B35: Temp 1 | C35: 0 | E35: 0 | F35: 0 | G35: 0 | H35: 0 | I35: 0
B36: Temp 2 | C36: 0 | E36: 0 | F36: =ROUND(E36*(1+$C$2),0) -> 0 | G36: =ROUND(F36*(1+$C$2),0) -> 0 | H36: =ROUND(G36*(1+$C$2),0) -> 0 | I36: =ROUND(H36*($C$2+1),0) -> 0
A37: HOURLY | C37: Hourly Rate | E37: Y1 | F37: YR-2 | G37: YR-3 | H37: YR-4 | I37: YR-5
B38: PT (30-39 hrs) 1 | C38: =C31 -> 0 | E38: =C31 -> 0 | F38: =E38*(1+$C$2) -> 0 | G38: =F38*(1+$C$2) -> 0 | H38: 0 | I38: 0
B39: PT (30-39 hrs) 2 | C39: 0 | E39: 0 | F39: =E39*(1+$C$2) -> 0 | G39: 0 | H39: 0 | I39: 0
B40: PT (≤29 hrs) 1 | C40: 0 | E40: 0 | F40: 0 | G40: 0 | H40: 0 | I40: 0
B41: PT (≤29 hrs) 2 | C41: 0 | E41: 0 | F41: 0 | G41: 0 | H41: 0 | I41: 0
B42: Temporary Employee 1 | C42: 0 | E42: 0 | F42: 0 | G42: 0 | H42: 0 | I42: 0
B43: Temporary Employee 2 | C43: 0 | E43: 0 | F43: =E43*(1+$C$2) -> 0 | G43: =F43*(1+$C$2) -> 0 | H43: =G43*(1+$C$2) -> 0 | I43: =H43*(1+$C$2) -> 0
A44: SALARY CALCULATOR
A45: Hours | B45: Hours | D45: Hourly rate: | E45: 0 | F45: Annual Salary: | G45: =ROUND(E45*40*52,0) -> 0
A46: Months | B46: Months | D46: Monthly rate: | E46: 0 | F46: Annual Salary: | G46: =ROUND(E46*12,0) -> 0
D47: Annual Salary | E47: 0 | F47: Hourly rate: | G47: =ROUND(E47/2080,2) -> 0

Sheet Subaward Worksheet
A1: SUBAWARD WORKSHEET
A2: Note: This worksheet calculates subaward overhead and is populated automatically. Enter subaward amounts in the main Budget Worksheet.
B3: Y1 | C3: Y2 | D3: Y3 | E3: Y4 | F3: Y5 | G3: Y1-5
A4: =BudgetWorksheet!$A$79 -> Subaward 1 | B4: =BudgetWorksheet!$D$79 -> 0 | C4: =BudgetWorksheet!$F$79 -> 0 | D4: =BudgetWorksheet!$H$79 -> 0 | E4: =BudgetWorksheet!$J$79 -> 0 | F4: =BudgetWorksheet!$L$79 -> 0 | G4: =SUM(B4:F4) -> 0
A5: Subject to OH | B5: =IF(B4>25000, 25000, B4) -> 0 | C5: =IF(B4+C4>25000, 25000-B5, C4) -> 0 | D5: =IF(B4+C4+D4>25000, 25000-(B5+C5), D4) -> 0 | E5: =IF(B4+C4+D4+E4>25000, 25000-(B5+C5+D5), E4) -> 0 | F5: =IF(B4+C4+D4+E4+F4>25000, 25000-(B5+C5+D5+E5), F4) -> 0 | G5: =SUM(B5:F5) -> 0
A6: OH | B6: =IF(B4>25000, 12750, (B4*0.51)) -> 0 | C6: =IF(C4+B4>25000,12750-B6,ROUND(C4*0.51,0)) -> 0 | D6: =IF(D4+C4+B4>25000,12750-(B6+C6),(D4*0.51)) -> 0 | E6: =IF(E4+D4+C4+B4>25000,12750-(B6+C6+D6),(E4*0.51)) -> 0 | F6: =IF(F4+E4+D4+C4+B4>25000,12750-(B6+C6+D6+E6),(F4*0.51)) -> 0 | G6: 0
A7: =BudgetWorksheet!$A$80 -> Subaward 2 | B7: =BudgetWorksheet!$D$80 -> 0 | C7: =BudgetWorksheet!$F$80 -> 0 | D7: =BudgetWorksheet!$H$80 -> 0 | E7: =BudgetWorksheet!$J$80 -> 0 | F7: =BudgetWorksheet!$L$80 -> 0 | G7: 0
A8: Subject to OH | B8: =IF(B7>25000, 25000, B7) -> 0 | C8: =IF(B7+C7>25000, 25000-B8, C7) -> 0 | D8: =IF(B7+C7+D7>25000, 25000-(B8+C8), D7) -> 0 | E8: =IF(B7+C7+D7+E7>25000, 25000-(B8+C8+D8), E7) -> 0 | F8: =IF(B7+C7+D7+E7+F7>25000, 25000-(B8+C8+D8+E8), F7) -> 0 | G8: =SUM(B8:F8) -> 0
A9: OH | B9: =IF(B7>25000, 12750, (B7*0.51)) -> 0 | C9: =IF(C7+B7>25000,12750-B9,ROUND(C7*0.51,0)) -> 0 | D9: =IF(D7+C7+B7>25000,12750-(B9+C9),(D7*0.51)) -> 0 | E9: =IF(E7+D7+C7+B7>25000,12750-(B9+C9+D9),(E7*0.51)) -> 0 | F9: =IF(F7+E7+D7+C7+B7>25000,12750-(B9+C9+D9+E9),(F7*0.51)) -> 0 | G9: 0
A10: =BudgetWorksheet!$A$81 -> Subaward 3 | B10: =BudgetWorksheet!$D$81 -> 0 | C10: =BudgetWorksheet!$F$81 -> 0 | D10: =BudgetWorksheet!$H$81 -> 0 | E10: =BudgetWorksheet!$J$81 -> 0 | F10: =BudgetWorksheet!$L$81 -> 0 | G10: 0
A11: Subject to OH | B11: =IF(B10>25000, 25000, B10) -> 0 | C11: =IF(B10+C10>25000, 25000-B11, C10) -> 0 | D11: =IF(B10+C10+D10>25000, 25000-(B11+C11), D10) -> 0 | E11: =IF(B10+C10+D10+E10>25000, 25000-(B11+C11+D11), E10) -> 0 | F11: =IF(B10+C10+D10+E10+F10>25000, 25000-(B11+C11+D11+E11), F10) -> 0 | G11: =SUM(B11:F11) -> 0
A12: OH | B12: =IF(B10>25000, 12750, (B10*0.51)) -> 0 | C12: =IF(C10+B10>25000,12750-B12,ROUND(C10*0.51,0)) -> 0 | D12: =IF(D10+C10+B10>25000,12750-(B12+C12),(D10*0.51)) -> 0 | E12: =IF(E10+D10+C10+B10>25000,12750-(B12+C12+D12),(E10*0.51)) -> 0 | F12: =IF(F10+E10+D10+C10+B10>25000,12750-(B12+C12+D12+E12),(F10*0.51)) -> 0 | G12: 0
A13: =BudgetWorksheet!$A$82 -> Subaward 4 | B13: =BudgetWorksheet!$D$82 -> 0 | C13: =BudgetWorksheet!$F$82 -> 0 | D13: =BudgetWorksheet!$H$82 -> 0 | E13: =BudgetWorksheet!$J$82 -> 0 | F13: =BudgetWorksheet!$L$82 -> 0 | G13: =SUM(B13:F13) -> 0
A14: Subject to OH | B14: =IF(B13>25000, 25000, B13) -> 0 | C14: =IF(B13+C13>25000, 25000-B14, C13) -> 0 | D14: =IF(B13+C13+D13>25000, 25000-(B14+C14), D13) -> 0 | E14: =IF(B13+C13+D13+E13>25000, 25000-(B14+C14+D14), E13) -> 0 | F14: =IF(B13+C13+D13+E13+F13>25000, 25000-(B14+C14+D14+E14), F13) -> 0 | G14: =SUM(B14:F14) -> 0
A15: OH | B15: =IF(B13>25000, 12750, (B13*0.51)) -> 0 | C15: =IF(C13+B13>25000,12750-B15,ROUND(C13*0.51,0)) -> 0 | D15: =IF(D13+C13+B13>25000,12750-(B15+C15),(D13*0.51)) -> 0 | E15: =IF(E13+D13+C13+B13>25000,12750-(B15+C15+D15),(E13*0.51)) -> 0 | F15: =IF(F13+E13+D13+C13+B13>25000,12750-(B15+C15+D15+E15),(F13*0.51)) -> 0 | G15: 0
A16: =BudgetWorksheet!$A$83 -> Subaward 5 | B16: =BudgetWorksheet!$D$83 -> 0 | C16: =BudgetWorksheet!$F$83 -> 0 | D16: =BudgetWorksheet!$H$83 -> 0 | E16: =BudgetWorksheet!$J$83 -> 0 | F16: =BudgetWorksheet!$L$83 -> 0 | G16: 0
A17: Subject to OH | B17: =IF(B16>25000, 25000, B16) -> 0 | C17: =IF(B16+C16>25000, 25000-B17, C16) -> 0 | D17: =IF(B16+C16+D16>25000, 25000-(B17+C17), D16) -> 0 | E17: =IF(B16+C16+D16+E16>25000, 25000-(B17+C17+D17), E16) -> 0 | F17: =IF(B16+C16+D16+E16+F16>25000, 25000-(B17+C17+D17+E17), F16) -> 0 | G17: =SUM(B17:F17) -> 0
A18: OH | B18: =IF(B16>25000, 12750, (B16*0.51)) -> 0 | C18: =IF(C16+B16>25000,12750-B18,ROUND(C16*0.51,0)) -> 0 | D18: =IF(D16+C16+B16>25000,12750-(B18+C18),(D16*0.51)) -> 0 | E18: =IF(E16+D16+C16+B16>25000,12750-(B18+C18+D18),(E16*0.51)) -> 0 | F18: =IF(F16+E16+D16+C16+B16>25000,12750-(B18+C18+D18+E18),(F16*0.51)) -> 0 | G18: 0
A19: =BudgetWorksheet!$A$84 -> Subaward 6 | B19: =BudgetWorksheet!$D$84 -> 0 | C19: =BudgetWorksheet!$F$84 -> 0 | D19: =BudgetWorksheet!$H$84 -> 0 | E19: =BudgetWorksheet!$J$84 -> 0 | F19: =BudgetWorksheet!$L$84 -> 0 | G19: 0
A20: Subject to OH | B20: =IF(B19>25000, 25000, B19) -> 0 | C20: =IF(B19+C19>25000, 25000-B20, C19) -> 0 | D20: =IF(B19+C19+D19>25000, 25000-(B20+C20), D19) -> 0 | E20: =IF(B19+C19+D19+E19>25000, 25000-(B20+C20+D20), E19) -> 0 | F20: =IF(B19+C19+D19+E19+F19>25000, 25000-(B20+C20+D20+E20), F19) -> 0 | G20: =SUM(B20:F20) -> 0
A21: OH | B21: =IF(B19>25000, 12750, (B19*0.51)) -> 0 | C21: =IF(C19+B19>25000,12750-B21,ROUND(C19*0.51,0)) -> 0 | D21: =IF(D19+C19+B19>25000,12750-(B21+C21),(D19*0.51)) -> 0 | E21: =IF(E19+D19+C19+B19>25000,12750-(B21+C21+D21),(E19*0.51)) -> 0 | F21: =IF(F19+E19+D19+C19+B19>25000,12750-(B21+C21+D21+E21),(F19*0.51)) -> 0 | G21: 0
A22: =BudgetWorksheet!$A$85 -> Subaward 7 | B22: =BudgetWorksheet!$D$85 -> 0 | C22: =BudgetWorksheet!$F$85 -> 0 | D22: =BudgetWorksheet!$H$85 -> 0 | E22: =BudgetWorksheet!$J$85 -> 0 | F22: =BudgetWorksheet!$L$85 -> 0 | G22: 0
A23: Subject to OH | B23: =IF(B22>25000, 25000, B22) -> 0 | C23: =IF(B22+C22>25000, 25000-B23, C22) -> 0 | D23: =IF(B22+C22+D22>25000, 25000-(B23+C23), D22) -> 0 | E23: =IF(B22+C22+D22+E22>25000, 25000-(B23+C23+D23), E22) -> 0 | F23: =IF(B22+C22+D22+E22+F22>25000, 25000-(B23+C23+D23+E23), F22) -> 0 | G23: =SUM(B23:F23) -> 0
A24: OH | B24: =IF(B22>25000, 12750, (B22*0.51)) -> 0 | C24: =IF(C22+B22>25000,12750-B24,ROUND(C22*0.51,0)) -> 0 | D24: =IF(D22+C22+B22>25000,12750-(B24+C24),(D22*0.51)) -> 0 | E24: =IF(E22+D22+C22+B22>25000,12750-(B24+C24+D24),(E22*0.51)) -> 0 | F24: =IF(F22+E22+D22+C22+B22>25000,12750-(B24+C24+D24+E24),(F22*0.51)) -> 0 | G24: 0
A25: =BudgetWorksheet!$A$86 -> Subaward 8 | B25: =BudgetWorksheet!$D$86 -> 0 | C25: =BudgetWorksheet!$F$86 -> 0 | D25: =BudgetWorksheet!$H$86 -> 0 | E25: =BudgetWorksheet!$J$86 -> 0 | F25: =BudgetWorksheet!$L$86 -> 0 | G25: 0
A26: Subject to OH | B26: =IF(B25>25000, 25000, B25) -> 0 | C26: =IF(B25+C25>25000, 25000-B26, C25) -> 0 | D26: =IF(B25+C25+D25>25000, 25000-(B26+C26), D25) -> 0 | E26: =IF(B25+C25+D25+E25>25000, 25000-(B26+C26+D26), E25) -> 0 | F26: =IF(B25+C25+D25+E25+F25>25000, 25000-(B26+C26+D26+E26), F25) -> 0 | G26: =SUM(B26:F26) -> 0
A27: OH | B27: =IF(B25>25000, 12750, (B25*0.51)) -> 0 | C27: =IF(C25+B25>25000,12750-B27,ROUND(C25*0.51,0)) -> 0 | D27: =IF(D25+C25+B25>25000,12750-(B27+C27),(D25*0.51)) -> 0 | E27: =IF(E25+D25+C25+B25>25000,12750-(B27+C27+D27),(E25*0.51)) -> 0 | F27: =IF(F25+E25+D25+C25+B25>25000,12750-(B27+C27+D27+E27),(F25*0.51)) -> 0 | G27: 0
A28: =BudgetWorksheet!$A$87 -> Subaward 9 | B28: =BudgetWorksheet!$D$87 -> 0 | C28: =BudgetWorksheet!$F$87 -> 0 | D28: =BudgetWorksheet!$H$87 -> 0 | E28: =BudgetWorksheet!$J$87 -> 0 | F28: =BudgetWorksheet!$L$87 -> 0 | G28: 0
A29: Subject to OH | B29: =IF(B28>25000, 25000, B28) -> 0 | C29: =IF(B28+C28>25000, 25000-B29, C28) -> 0 | D29: =IF(B28+C28+D28>25000, 25000-(B29+C29), D28) -> 0 | E29: =IF(B28+C28+D28+E28>25000, 25000-(B29+C29+D29), E28) -> 0 | F29: =IF(B28+C28+D28+E28+F28>25000, 25000-(B29+C29+D29+E29), F28) -> 0 | G29: =SUM(B29:F29) -> 0
A30: OH | B30: =IF(B28>25000, 12750, (B28*0.51)) -> 0 | C30: =IF(C28+B28>25000,12750-B30,ROUND(C28*0.51,0)) -> 0 | D30: =IF(D28+C28+B28>25000,12750-(B30+C30),(D28*0.51)) -> 0 | E30: =IF(E28+D28+C28+B28>25000,12750-(B30+C30+D30),(E28*0.51)) -> 0 | F30: =IF(F28+E28+D28+C28+B28>25000,12750-(B30+C30+D30+E30),(F28*0.51)) -> 0 | G30: 0
A31: =BudgetWorksheet!$A$88 -> Subaward 10 | B31: =BudgetWorksheet!$D$88 -> 0 | C31: =BudgetWorksheet!$F$88 -> 0 | D31: =BudgetWorksheet!$H$88 -> 0 | E31: =BudgetWorksheet!$J$88 -> 0 | F31: =BudgetWorksheet!$L$88 -> 0 | G31: 0
A32: Subject to OH | B32: =IF(B31>25000, 25000, B31) -> 0 | C32: =IF(B31+C31>25000, 25000-B32, C31) -> 0 | D32: =IF(B31+C31+D31>25000, 25000-(B32+C32), D31) -> 0 | E32: =IF(B31+C31+D31+E31>25000, 25000-(B32+C32+D32), E31) -> 0 | F32: =IF(B31+C31+D31+E31+F31>25000, 25000-(B32+C32+D32+E32), F31) -> 0 | G32: =SUM(B32:F32) -> 0
A33: OH | B33: =IF(B31>25000, 12750, (B31*0.51)) -> 0 | C33: =IF(C31+B31>25000,12750-B33,ROUND(C31*0.51,0)) -> 0 | D33: =IF(D31+C31+B31>25000,12750-(B33+C33),(D31*0.51)) -> 0 | E33: =IF(E31+D31+C31+B31>25000,12750-(B33+C33+D33),(E31*0.51)) -> 0 | F33: =IF(F31+E31+D31+C31+B31>25000,12750-(B33+C33+D33+E33),(F31*0.51)) -> 0 | G33: 0
A34: Total Subawards | B34: =SUM(B31,B28,B22,B19,B16,B13,B10,B7,B4) -> 0 | C34: =SUM(C31,C28,C22,C19,C16,C13,C10,C7,C4) -> 0 | D34: 0 | E34: 0 | F34: 0 | G34: =SUM(B34:F34) -> 0
A35: Total Subject to OH | B35: =SUM(B32,B29,B26,B23,B20,B17,B14,B11,B8,B5) -> 0 | C35: =SUM(C32,C29,C26,C23,C20,C17,C14,C11,C8,C5) -> 0 | D35: 0 | E35: 0 | F35: 0 | G35: =SUM(B35:F35) -> 0
A36: Total Overhead | B36: =SUM(B33,B30,B27,B24,B21,B18,B15,B12,B9,B6) -> 0 | C36: =SUM(C33,C30,C27,C24,C21,C18,C15,C12,C9,C6) -> 0 | D36: 0 | E36: 0 | F36: 0 | G36: 0
A38: pw: edit

Sheet Ship rates
A1: none | B1: 0 | H1: 0
A2: Western Flyer w/ Doc Ricketts, 24hr | B2: 28100 | H2: 26500
A3: Rachel Carson w/ Ventana, 10hr | B3: 16500 | H3: 16200
A4: Rachel Carson w/ Ventana, 12 hr | B4: 16500 | H4: 17000
A5: Rachel Carson w/ AUV, 10hr | B5: 25000 | H5: 16300
A6: Rachel Carson w/ AUV, 12hr | B6: 25000 | H6: 17100
A7: Rachel Carson w/ ROV + AUV, 10hr | B7: 30100 | H7: 23100
A8: Rachel Carson w/ ROV + AUV, 12hr | B8: 30100 | H8: 23900
A9: Rachel Carson only, 10hr | B9: 11400 | H9: 9400
A10: Rachel Carson only, 12hr | B10: 11400 | H10: 10200
A11: Rachel Carson only, 24hr | B11: 12600 | H11: 14100
A12: AUV only, 10 or 12hr | B12: 13600 | H12: 6900
A13: Test Tank | B13: 450 | H13: 450
B15: 2014 rates | H15: 2013 rates
